bitfinex-derivatives/quotes_BTCF0:USTF0_20240910
["timestamp","ask_amount","ask_price","bid_price","bid_amount"]
[1726001300764,0.27886546,57889.0,57888.0,0.002]
[1726001302665,0.25870584,57889.0,57877.0,0.086384]
[1726001302867,0.086382,57880.0,57876.0,0.2]
[1726001303065,0.08519265,57879.0,57876.0,0.2]
[1726001303269,0.02800273,57878.0,57877.0,0.086385]
[1726001303460,0.02800492,57879.0,57876.0,0.2]
[1726001303767,0.02800492,57878.0,57877.0,0.086385]
[1726001303966,0.086382,57880.0,57878.0,0.086384]
[1726001304168,0.08500121,57879.0,57878.0,0.087384]
[1726001304369,0.17138321,57879.0,57878.0,0.087384]
[1726001304872,0.17338321,57879.0,57878.0,0.087384]
[1726001305272,0.17138321,57879.0,57878.0,0.087384]
[1726001305570,0.17338321,57879.0,57878.0,0.087384]
[1726001306665,0.17338321,57879.0,57878.0,0.088384]
[1726001306666,0.17438321,57879.0,57878.0,0.088384]
[1726001307661,0.089382,57879.0,57878.0,0.27504043]
[1726001310369,0.089382,57879.0,57878.0,0.18898519]
[1726001310573,0.089382,57879.0,57878.0,0.27508606]
[1726001311472,0.089382,57879.0,57878.0,0.18898519]
[1726001311863,0.003,57879.0,57878.0,0.17449071]
[1726001312059,0.003,57879.0,57878.0,1.39368133]
[1726001312265,0.003,57879.0,57878.0,1.51346513]
[1726001312467,0.086367,57889.0,57888.0,0.086369]
[1726001312668,0.32698,57892.0,57891.0,0.086364]
[1726001312872,0.00088,57892.0,57891.0,0.086364]
[1726001313062,0.00088,57892.0,57891.0,0.15521061]
[1726001313368,0.086363,57892.0,57891.0,0.15521061]
[1726001313959,0.10565433,57892.0,57891.0,0.15521061]
[1726001314375,0.10565433,57892.0,57891.0,0.086364]
[1726001314574,0.10565433,57892.0,57891.0,0.087364]
[1726001315268,0.10565433,57892.0,57891.0,0.088364]
[1726001317680,0.10565433,57892.0,57891.0,0.288364]
[1726001320276,0.10565433,57892.0,57891.0,0.088364]
[1726001321269,0.10565433,57892.0,57891.0,0.002]
[1726001321467,0.19201733,57892.0,57891.0,0.002]
[1726001322070,0.10565433,57892.0,57891.0,0.002]
[1726001322675,0.26042088,57892.0,57884.0,0.2]
[1726001322879,0.12074089,57885.0,57884.0,0.2]
[1726001323274,0.12074089,57885.0,57884.0,0.286375]
[1726001323782,0.08547404,57885.0,57884.0,0.287375]
[1726001324172,0.17184704,57885.0,57884.0,0.287375]
[1726001324787,0.23787825,57885.0,57884.0,0.288375]
[1726001325579,0.23724902,57885.0,57884.0,0.288375]
[1726001326081,0.23724902,57885.0,57884.0,0.087375]
[1726001326281,0.23824902,57885.0,57884.0,0.088375]
[1726001327177,0.23824902,57885.0,57884.0,0.002]
[1726001327178,0.52462202,57885.0,57884.0,0.002]
[1726001327382,0.32462202,57885.0,57884.0,0.002]
[1726001327881,0.086388,57875.0,57874.0,0.02309434]
[1726001328075,0.11439016,57875.0,57874.0,0.10548434]
[1726001329185,0.086393,57872.0,57871.0,0.06]
[1726001329381,0.086394,57871.0,57870.0,0.086395]
[1726001329586,0.17109256,57871.0,57870.0,0.086395]
[1726001329774,0.1430904,57871.0,57870.0,0.146395]
[1726001329972,0.23647795,57871.0,57870.0,0.146395]
[1726001330385,0.23640592,57871.0,57870.0,0.146395]
[1726001330685,0.086394,57871.0,57870.0,0.146395]
[1726001332482,0.088394,57871.0,57870.0,0.146395]
[1726001333184,0.088394,57871.0,57870.0,0.147395]
[1726001333389,0.088394,57871.0,57870.0,0.21607473]
[1726001333697,0.090394,57871.0,57870.0,0.21607473]
[1726001334082,0.10803807,57871.0,57870.0,0.21607473]
[1726001334388,0.10803807,57871.0,57870.0,0.21707473]
[1726001334389,0.11003807,57871.0,57870.0,0.21707473]
[1726001335378,0.11003807,57871.0,57870.0,0.148395]
[1726001335576,0.11003807,57871.0,57870.0,0.21707473]
[1726001335793,0.19643207,57871.0,57870.0,0.062]
[1726001335979,0.19643207,57871.0,57870.0,0.05349193]
[1726001336181,0.31643207,57871.0,57870.0,0.05349193]
[1726001336489,0.31643207,57871.0,57870.0,0.062]
[1726001344891,0.11003807,57871.0,57870.0,0.268396]
[1726001345592,0.11003807,57871.0,57870.0,0.148396]
[1726001346378,0.11003807,57871.0,57870.0,0.062]
[1726001346987,0.11003807,57871.0,57870.0,0.148396]
[1726001348197,0.11003807,57871.0,57870.0,0.268396]
[1726001348392,0.11003807,57871.0,57870.0,0.31988793]
[1726001349497,0.11003807,57871.0,57870.0,0.268396]
[1726001351502,0.11003807,57871.0,57870.0,0.31985883]
[1726001352598,0.11003807,57871.0,57870.0,0.268396]
[1726001356799,0.004,57878.0,57877.0,0.086385]
[1726001356995,0.004,57885.0,57884.0,0.086375]
[1726001357201,0.086367,57889.0,57884.0,0.12]
[1726001357397,0.086367,57889.0,57887.0,0.12]
[1726001357596,0.10348851,57891.0,57889.0,0.086367]
[1726001357798,0.18985351,57891.0,57889.0,0.086367]
[1726001357998,0.02800231,57890.0,57889.0,0.086367]
[1726001358606,0.11436831,57890.0,57889.0,0.086367]
[1726001359793,0.11436831,57890.0,57889.0,0.088367]
[1726001360199,0.086366,57890.0,57889.0,0.088367]
[1726001360411,0.086366,57890.0,57889.0,0.087367]
[1726001360604,0.086366,57890.0,57889.0,0.088367]
[1726001361900,0.086366,57890.0,57889.0,0.002]
[1726001369011,0.086366,57890.0,57889.0,0.088367]
[1726001377821,0.1143674,57890.0,57889.0,0.088367]
[1726001378123,0.11436714,57890.0,57889.0,0.088367]
[1726001380418,0.11436768,57890.0,57889.0,0.088367]
[1726001381218,0.21785619,57890.0,57889.0,0.088367]
[1726001382711,0.11436768,57890.0,57889.0,0.088367]
[1726001382916,0.086366,57890.0,57889.0,0.13990311]
[1726001383117,0.086366,57890.0,57889.0,0.088367]
[1726001384224,0.01944039,57891.0,57890.0,0.086366]
[1726001384417,0.090363,57892.0,57891.0,0.086364]
[1726001384618,0.086359,57895.0,57893.0,0.086361]
[1726001384816,0.086359,57895.0,57894.0,0.08636]
[1726001386324,0.086359,57895.0,57894.0,0.08736]
[1726001387515,0.086359,57895.0,57894.0,0.08836]
[1726001389429,0.086359,57895.0,57894.0,0.15734485]
[1726001389616,0.086359,57895.0,57894.0,0.08836]
[1726001390418,0.086359,57895.0,57894.0,0.27734275]
[1726001390929,0.086359,57895.0,57894.0,0.08836]
[1726001391230,0.17194042,57897.0,57896.0,0.086357]
[1726001391420,0.15240511,57897.0,57896.0,0.206357]
[1726001391623,0.12440604,57897.0,57896.0,0.206357]
[1726001391823,0.12085061,57897.0,57896.0,0.206357]
[1726001392126,0.17192156,57897.0,57896.0,0.206357]
[1726001392829,0.17192156,57897.0,57896.0,0.207357]
[1726001393834,0.17192156,57897.0,57896.0,0.208357]
[1726001395133,0.11435407,57897.0,57896.0,0.208357]
[1726001395334,0.11435319,57897.0,57896.0,0.208357]
[1726001396033,0.32070819,57897.0,57896.0,0.002]
[1726001396230,0.086365,57891.0,57887.0,0.004]
[1726001396431,0.086365,57891.0,57883.0,0.12]
[1726001396432,0.08637,57887.0,57886.0,0.20637]
[1726001396633,0.18989629,57887.0,57886.0,0.20637]
[1726001396835,0.21789448,57887.0,57886.0,0.20637]
[1726001397925,0.21789448,57887.0,57886.0,0.30671141]
[1726001397926,0.08637,57887.0,57886.0,0.30671141]
[1726001398323,0.08637,57887.0,57886.0,0.30771141]
[1726001398834,0.08737,57887.0,57886.0,0.30871141]
[1726001400532,0.10709893,57887.0,57886.0,0.30871141]
[1726001401938,0.001,57887.0,57886.0,0.30871141]
[1726001402540,0.001,57887.0,57886.0,0.36871141]
[1726001403439,0.001,57887.0,57886.0,0.16234141]
[1726001403640,0.08737,57887.0,57886.0,0.10234141]
[1726001403839,0.08737,57887.0,57886.0,0.08822263]
[1726001404240,0.08737,57887.0,57886.0,0.188612]
[1726001404540,0.08737,57887.0,57886.0,0.08822263]
[1726001404733,0.08737,57887.0,57886.0,0.17459463]
[1726001405041,0.08737,57887.0,57886.0,0.088372]
[1726001405949,0.08737,57887.0,57886.0,0.27491973]
[1726001406133,0.08737,57887.0,57886.0,0.17459463]
[1726001409347,0.08737,57887.0,57886.0,0.18856624]
[1726001410443,0.08737,57887.0,57886.0,0.088372]
[1726001410654,1.49835,57887.0,57886.0,0.07094702]
[1726001410838,0.086373,57885.0,57884.0,0.05171628]
[1726001411038,0.172756,57882.0,57881.0,0.05171628]
[1726001411239,0.292756,57882.0,57881.0,0.05171628]
[1726001411535,0.292756,57882.0,57879.0,0.05171628]
[1726001411536,1.23832,57882.0,57879.0,0.05171628]
[1726001411742,0.12,57880.0,57879.0,0.05171628]
[1726001412342,0.086382,57879.0,57878.0,0.05171628]
[1726001412541,0.182982,57879.0,57878.0,0.05171628]
[1726001412837,0.182982,57879.0,57872.0,0.13810928]
[1726001412838,0.086391,57873.0,57872.0,0.13810928]
[1726001413848,0.086391,57873.0,57872.0,0.086393]
[1726001414446,0.086391,57873.0,57872.0,0.266393]
[1726001414744,0.089391,57873.0,57872.0,0.267393]
[1726001414937,0.089391,57873.0,57872.0,0.147393]
[1726001415137,0.089391,57873.0,57872.0,0.267393]
[1726001415637,0.090391,57873.0,57872.0,0.062]
[1726001416050,0.090391,57873.0,57872.0,0.182]
[1726001417449,0.10584261,57873.0,57872.0,0.182]
[1726001418039,0.10584261,57873.0,57872.0,0.062]
[1726001419467,0.01945161,57873.0,57872.0,0.268393]
[1726001422652,0.004,57873.0,57872.0,0.268393]
[1726001426760,0.12,57884.0,57872.0,0.268393]
[1726001426761,0.090382,57880.0,57879.0,0.086382]
[1726001426959,0.086363,57893.0,57879.0,0.086382]
[1726001426960,0.00849671,57890.0,57879.0,0.12]
[1726001427164,0.00849671,57890.0,57885.0,0.12]
[1726001427165,0.086372,57886.0,57885.0,0.12]
[1726001427460,0.086372,57886.0,57885.0,0.206373]
[1726001427659,0.086363,57893.0,57885.0,0.12]
[1726001427959,0.08603411,57892.0,57891.0,0.12]
[1726001428155,0.0860689,57892.0,57891.0,0.12]
[1726001428656,0.1724319,57892.0,57891.0,0.12]
[1726001429249,0.1724319,57892.0,57888.0,0.12]
[1726001429250,0.0860689,57892.0,57888.0,0.12]
[1726001429550,0.02800333,57891.0,57888.0,0.12]
[1726001429753,0.086367,57889.0,57888.0,0.12]
[1726001430054,0.11437033,57889.0,57888.0,0.12]
[1726001430450,0.11437033,57889.0,57888.0,0.121]
[1726001430851,0.11437033,57889.0,57888.0,0.12]
[1726001431045,0.11437033,57889.0,57888.0,0.121]
[1726001431461,0.11437033,57889.0,57888.0,0.122]
[1726001432157,0.11437033,57889.0,57888.0,0.121]
[1726001432368,0.11437033,57889.0,57888.0,0.122]
[1726001434257,0.11437033,57889.0,57888.0,0.002]
[1726001434864,0.11375261,57889.0,57888.0,0.002]
[1726001435655,0.20011961,57889.0,57888.0,0.002]
[1726001435857,0.25831299,57889.0,57888.0,0.002]
[1726001436056,0.08574928,57889.0,57888.0,0.002]
[1726001437153,0.086363,57892.0,57888.0,0.122]
[1726001437360,0.086363,57892.0,57891.0,0.12]
[1726001437664,0.086361,57893.0,57892.0,0.086363]
[1726001438351,0.086361,57893.0,57892.0,0.1379642]
[1726001438551,0.086361,57893.0,57892.0,0.086363]
[1726001439356,0.01602692,57896.0,57895.0,0.086358]
[1726001439667,0.004,57903.0,57899.0,0.086352]
[1726001439868,0.32698,57906.0,57899.0,0.086352]
[1726001440055,0.086348,57903.0,57899.0,0.086352]
[1726001440451,0.3261,57906.0,57899.0,0.086352]
[1726001440665,0.10209883,57900.0,57899.0,0.206352]
[1726001441263,0.10209883,57900.0,57899.0,0.207352]
[1726001442171,0.10209883,57900.0,57899.0,0.208352]
[1726001442969,0.13009559,57900.0,57899.0,0.208352]
[1726001443465,0.18865584,57900.0,57899.0,0.122]
[1726001443760,0.18865584,57900.0,57899.0,0.208352]
[1726001444169,0.13009559,57900.0,57899.0,0.208352]
[1726001446268,0.02803676,57900.0,57899.0,0.208352]
[1726001447266,4e-05,57900.0,57899.0,0.208352]
[1726001447673,0.02803676,57900.0,57899.0,0.208352]
[1726001447864,0.11438765,57900.0,57899.0,0.208352]
[1726001449475,0.17226274,57900.0,57899.0,0.208352]
[1726001450070,0.11438765,57900.0,57899.0,0.208352]
[1726001450376,0.17227502,57900.0,57899.0,0.208352]
[1726001451174,0.086391,57900.0,57899.0,0.208352]
[1726001453971,0.086391,57900.0,57899.0,0.088352]
[1726001454179,0.086391,57900.0,57899.0,0.208352]
[1726001457975,0.172742,57900.0,57899.0,0.002]
[1726001458279,0.825813,57900.0,57899.0,0.002]
[1726001458575,1.425813,57900.0,57899.0,0.002]
[1726001459477,1.45381239,57900.0,57899.0,0.002]
[1726001461275,1.52905413,57900.0,57899.0,0.002]
[1726001461480,0.172722,57893.0,57892.0,0.004]
[1726001461684,0.086366,57890.0,57886.0,0.12]
[1726001462875,0.08637,57887.0,57886.0,0.121]
[1726001464576,0.08737,57887.0,57886.0,0.122]
[1726001465179,0.08737,57887.0,57886.0,0.17365201]
[1726001466282,0.13103031,57887.0,57886.0,0.122]
[1726001467085,0.13103031,57887.0,57886.0,0.208372]
[1726001467488,0.29286095,57887.0,57886.0,0.002]
[1726001467677,0.21740031,57887.0,57886.0,0.122]
[1726001470096,0.21740031,57887.0,57886.0,0.002]
[1726001470696,0.27482151,57887.0,57886.0,0.002]
[1726001470990,0.172762,57880.0,57872.0,0.004]
[1726001471192,0.41200229,57880.0,57872.0,0.004]
[1726001471381,0.086387,57876.0,57870.0,0.06]
[1726001471589,0.086394,57871.0,57870.0,0.06]
[1726001471794,0.18971044,57871.0,57870.0,0.06]
[1726001472089,0.086396,57870.0,57869.0,0.086396]
[1726001472291,0.11440025,57870.0,57869.0,0.086396]
[1726001473099,0.086396,57870.0,57869.0,0.086396]
[1726001473594,0.086396,57870.0,57869.0,0.089396]
[1726001473896,0.086396,57870.0,57869.0,0.094396]
[1726001474688,0.086396,57870.0,57869.0,0.16326535]
[1726001474903,0.086396,57870.0,57869.0,0.154396]
[1726001475394,0.086396,57870.0,57869.0,0.20601725]
[1726001475883,0.086396,57870.0,57869.0,0.20101725]
[1726001476084,0.087396,57870.0,57869.0,0.19801725]
[1726001476393,0.087396,57870.0,57869.0,0.146396]
[1726001476594,0.001,57870.0,57869.0,0.146396]
[1726001477898,0.001,57870.0,57869.0,0.19799101]
[1726001478092,0.001,57870.0,57869.0,0.19799171]
[1726001478591,0.001,57870.0,57869.0,0.146396]
[1726001478787,0.001,57870.0,57869.0,0.19798467]
[1726001478994,0.087396,57870.0,57869.0,0.19798467]
[1726001481087,0.087396,57870.0,57869.0,0.146396]
[1726001483796,0.087396,57870.0,57869.0,0.06]
[1726001488688,0.173792,57870.0,57869.0,0.06]
[1726001489804,0.173792,57870.0,57863.0,0.004]
[1726001489805,1.205796,57870.0,57863.0,0.004]
[1726001490008,1.205796,57870.0,57860.0,0.004]
[1726001490009,0.259227,57861.0,57860.0,0.004]
[1726001490193,0.286409,57861.0,57854.0,0.05158867]
[1726001490399,0.086423,57852.0,57851.0,0.05158867]
[1726001490595,0.086423,57852.0,57849.0,0.05158867]
[1726001490906,0.086427,57849.0,57848.0,0.05158867]
[1726001491105,0.08643,57847.0,57846.0,0.05158867]
[1726001491294,0.08643,57847.0,57841.0,0.0492]
[1726001491295,0.2,57847.0,57844.0,0.05158867]
[1726001491608,0.086435,57844.0,57842.0,0.05158867]
[1726001491990,0.2,57847.0,57842.0,0.05158867]
[1726001492297,0.12,57844.0,57840.0,0.0487]
[1726001492500,0.086441,57840.0,57839.0,0.05158867]
[1726001492805,0.086441,57840.0,57837.0,0.086444]
[1726001492806,0.086442,57839.0,57838.0,0.05158867]
[1726001493300,0.086444,57838.0,57837.0,0.12]
[1726001493694,0.086445,57837.0,57835.0,0.05158867]
[1726001494005,0.086447,57836.0,57835.0,0.05158867]
[1726001494196,0.086447,57836.0,57834.0,0.086448]
[1726001494508,0.086451,57833.0,57830.0,0.13804367]
[1726001494697,0.086456,57830.0,57828.0,0.05158867]
[1726001495092,0.086456,57830.0,57827.0,0.13804867]
[1726001495292,0.08645,57834.0,57828.0,0.286458]
[1726001496089,0.0186069,57839.0,57828.0,0.286458]
[1726001496506,0.0156069,57839.0,57829.0,0.086457]
[1726001496804,0.2456,57840.0,57829.0,0.086457]
[1726001497394,0.086451,57834.0,57829.0,0.086457]
[1726001498205,0.086451,57833.0,57830.0,0.086455]
[1726001499698,0.086451,57833.0,57831.0,0.086453]
[1726001500000,0.086453,57832.0,57831.0,0.086453]
[1726001501109,0.086453,57832.0,57831.0,0.088453]
[1726001502693,0.086453,57832.0,57831.0,0.092453]
[1726001503900,0.10183541,57832.0,57831.0,0.092453]
[1726001504508,0.10183541,57832.0,57831.0,0.006]
[1726001506610,0.01538241,57832.0,57831.0,0.092454]
[1726001506812,0.086451,57833.0,57832.0,0.086453]
[1726001507917,0.086451,57833.0,57832.0,0.088453]
[1726001509011,0.086451,57833.0,57832.0,0.089453]
[1726001515315,0.086444,57838.0,57837.0,0.086441]
[1726001515622,0.086444,57838.0,57837.0,0.286441]
[1726001516015,0.086444,57838.0,57837.0,0.086441]
[1726001516615,0.10248592,57838.0,57837.0,0.086441]
[1726001516810,0.10448592,57838.0,57837.0,0.086441]
[1726001517811,0.10648592,57838.0,57837.0,0.086441]
[1726001518017,0.086447,57836.0,57835.0,0.05158867]
[1726001518314,0.22004192,57838.0,57835.0,0.05170577]
[1726001518511,0.172896,57835.0,57834.0,0.05170577]
[1726001519317,0.08645,57834.0,57833.0,0.06886935]
[1726001520312,0.086451,57833.0,57832.0,0.17253869]
[1726001520824,0.086451,57833.0,57832.0,0.27472115]
[1726001521721,0.086448,57835.0,57834.0,0.08645]
[1726001521913,0.086448,57835.0,57834.0,0.27500331]
[1726001522117,0.086448,57835.0,57834.0,0.18864404]
[1726001523120,0.086448,57835.0,57834.0,0.1886792]
[1726001523825,0.086445,57837.0,57836.0,0.086445]
[1726001524011,0.086445,57837.0,57836.0,0.27509127]
[1726001524326,0.086445,57837.0,57836.0,0.1886742]
[1726001525115,0.088445,57837.0,57836.0,0.1886742]
[1726001525315,0.088445,57837.0,57836.0,0.2751046]
[1726001525533,0.088445,57837.0,57836.0,0.1886742]
[1726001526231,0.002,57837.0,57836.0,0.1886742]
[1726001526520,0.01996944,57837.0,57836.0,0.1886742]
[1726001526717,0.01996944,57837.0,57836.0,0.29197823]
[1726001527718,0.01996944,57837.0,57836.0,0.1886742]
[1726001528423,0.01996944,57837.0,57836.0,0.2750897]
[1726001528424,0.10641444,57837.0,57836.0,0.2750897]
[1726001528930,0.10641444,57837.0,57836.0,0.1886742]
[1726001533021,0.10641444,57837.0,57836.0,0.18897518]
[1726001533829,0.10641444,57837.0,57836.0,0.27537682]
[1726001534038,0.10641444,57837.0,57836.0,0.18897518]
[1726001534243,0.18944144,57837.0,57836.0,0.086445]
[1726001534425,0.13444156,57837.0,57836.0,0.086445]
[1726001534820,0.18941454,57837.0,57836.0,0.086445]
[1726001535436,0.086451,57834.0,57833.0,0.08645]
[1726001535637,0.11447812,57834.0,57833.0,0.08645]
[1726001537129,0.11447812,57834.0,57833.0,0.08745]
[1726001537730,0.11447955,57834.0,57833.0,0.08745]
[1726001538425,0.1693074,57834.0,57833.0,0.08745]
[1726001541240,0.086451,57834.0,57833.0,0.19023091]
[1726001541435,0.086451,57834.0,57833.0,0.10378091]
[1726001541637,0.172902,57834.0,57833.0,0.10378091]
[1726001542338,0.259353,57834.0,57833.0,0.10378091]
[1726001542640,0.259353,57834.0,57827.0,0.004]
[1726001542641,0.086454,57831.0,57829.0,1e-08]
[1726001542835,0.086458,57828.0,57827.0,1e-08]
[1726001543040,0.086464,57824.0,57822.0,0.08644046]
[1726001543241,0.206464,57824.0,57822.0,0.08644046]
[1726001543541,0.206464,57824.0,57818.0,0.22330403]
[1726001543542,0.08647,57820.0,57819.0,0.08644046]
[1726001543746,0.08647,57820.0,57819.0,0.18866355]
[1726001544138,0.08647,57820.0,57819.0,0.08644046]
[1726001544331,0.0917,57823.0,57817.0,0.08637702]
[1726001544736,0.086467,57822.0,57819.0,0.014]
[1726001545434,0.08647,57820.0,57819.0,0.014]
[1726001546041,0.086473,57819.0,57816.0,0.17285202]
[1726001546248,0.08647,57820.0,57819.0,0.014]
[1726001546442,0.28647,57820.0,57819.0,0.014]
[1726001546842,0.086473,57818.0,57817.0,0.014]
[1726001547145,0.0477,57819.0,57814.0,0.08626263]
[1726001547350,0.0477,57819.0,57807.0,0.090489]
[1726001547351,0.086478,57815.0,57807.0,0.090489]
[1726001547541,0.086481,57813.0,57812.0,0.05174258]
[1726001547741,0.086482,57812.0,57811.0,0.05174258]
[1726001548453,0.086487,57809.0,57808.0,0.05174258]
[1726001548946,0.0957,57811.0,57807.0,0.05171554]
[1726001548947,0.172976,57808.0,57807.0,0.05171554]
[1726001549249,0.2,57806.0,57803.0,0.05171554]
[1726001549444,0.2,57806.0,57801.0,0.086499]
[1726001549445,0.086496,57803.0,57801.0,0.086499]
[1726001549742,0.086497,57802.0,57801.0,0.086499]
[1726001550843,0.086497,57802.0,57801.0,0.100499]
[1726001551637,0.086497,57802.0,57801.0,0.014]
[1726001552238,0.2,57806.0,57799.0,0.086501]
[1726001552454,0.0462,57807.0,57801.0,0.028]
[1726001552637,0.086496,57803.0,57801.0,0.228]
[1726001552838,0.086496,57803.0,57802.0,0.086497]
[1726001553045,0.086491,57807.0,57802.0,0.00103214]
[1726001553345,0.01595552,57809.0,57808.0,0.086488]
[1726001553551,0.0957,57811.0,57804.0,0.286493]
[1726001553850,0.086493,57806.0,57804.0,0.286493]
[1726001554052,0.086493,57806.0,57805.0,0.086493]
[1726001554246,0.086493,57806.0,57805.0,0.08752514]
[1726001554949,0.086489,57808.0,57807.0,0.086488]
[1726001555144,0.086489,57808.0,57807.0,0.08752014]
[1726001556650,0.086489,57808.0,57807.0,0.10152014]
[1726001557145,0.086489,57808.0,57807.0,0.11552014]
[1726001559850,0.086489,57808.0,57807.0,0.02903214]
[1726001562743,0.172978,57808.0,57807.0,0.02903214]
[1726001563336,0.086489,57808.0,57807.0,0.02903214]
[1726001563546,0.10246549,57811.0,57810.0,0.086485]
[1726001563742,0.086488,57808.0,57807.0,0.11552214]
[1726001564142,0.086488,57808.0,57807.0,0.02903214]
[1726001564547,0.172976,57808.0,57807.0,0.02903214]
[1726001564743,0.691936,57808.0,57807.0,0.02903214]
[1726001564950,0.172976,57808.0,57807.0,0.02903214]
[1726001565141,1.378424,57808.0,57807.0,0.02903214]
[1726001566655,1.379424,57808.0,57807.0,0.02403214]
[1726001566957,0.172994,57802.0,57801.0,0.004]
[1726001567142,0.172994,57802.0,57788.0,0.0482]
[1726001567143,0.086508,57795.0,57794.0,0.004]
[1726001567345,0.2,57797.0,57790.0,0.086515]
[1726001568042,0.086514,57792.0,57791.0,0.086514]
[1726001568745,0.086514,57791.0,57790.0,0.014]
[1726001569347,0.086517,57789.0,57788.0,0.086517]
[1726001570752,0.086526,57783.0,57782.0,0.13688263]
[1726001570951,0.086526,57783.0,57782.0,0.0497]
[1726001571151,0.086526,57783.0,57782.0,0.10135988]
[1726001571347,0.086526,57783.0,57782.0,0.0497]
[1726001572150,0.087526,57783.0,57782.0,0.149227]
[1726001572350,0.160052,57783.0,57782.0,0.013]
[1726001573158,0.160052,57783.0,57782.0,0.027]
[1726001573159,0.161052,57783.0,57782.0,0.027]
[1726001574560,0.08653,57780.0,57779.0,0.05169575]
[1726001574760,0.086532,57779.0,57777.0,0.086535]
[1726001574957,0.086533,57778.0,57777.0,0.086535]
[1726001575360,0.10407745,57783.0,57782.0,0.007]
[1726001575552,0.10407745,57783.0,57782.0,0.05868516]
[1726001575752,0.10207745,57783.0,57782.0,0.05168516]
[1726001576356,0.10207745,57783.0,57782.0,0.13821216]
[1726001576650,0.10307745,57783.0,57782.0,0.093527]
[1726001577653,0.10407745,57783.0,57782.0,0.105527]
[1726001577854,0.10407745,57783.0,57782.0,0.15720633]
[1726001579561,0.01755145,57783.0,57782.0,0.35720633]
[1726001579768,0.01755145,57783.0,57782.0,0.305527]
[1726001580069,0.002,57783.0,57782.0,0.824727]
[1726001580271,0.002,57783.0,57782.0,1.511254]
[1726001580450,0.004,57790.0,57789.0,0.086517]
[1726001580653,0.090506,57797.0,57788.0,0.2]
[1726001580960,0.086511,57793.0,57789.0,0.0458]
[1726001581351,0.086511,57793.0,57792.0,0.2]
[1726001581553,0.086508,57795.0,57789.0,0.05165535]
[1726001581750,0.086508,57795.0,57789.0,0.05965535]
[1726001581961,0.086515,57791.0,57790.0,0.132013]
[1726001584457,0.17403,57791.0,57790.0,0.008]
[1726001584658,0.17503,57791.0,57790.0,0.015]
[1726001585066,0.19104431,57791.0,57790.0,0.015]
[1726001587663,0.10452931,57791.0,57790.0,0.015]
[1726001587875,0.088515,57791.0,57790.0,0.015]
[1726001588367,0.088515,57791.0,57790.0,0.101515]
[1726001589565,0.002,57791.0,57790.0,0.101515]
[1726001589765,0.002,57791.0,57790.0,0.620635]
[1726001593669,0.002,57791.0,57790.0,0.101515]
[1726001601474,0.002,57791.0,57790.0,0.20489528]
[1726001604481,0.088514,57791.0,57790.0,0.20489528]
[1726001604978,0.088514,57791.0,57790.0,0.18782606]
[1726001605179,0.088514,57791.0,57790.0,0.101515]
[1726001608177,0.088514,57791.0,57790.0,0.18782606]
[1726001608376,0.088514,57791.0,57790.0,0.29141989]
[1726001608574,0.11656247,57791.0,57790.0,0.101515]
[1726001610379,0.21950026,57791.0,57790.0,0.101515]
[1726001611071,0.30601426,57791.0,57790.0,0.015]
[1726001611478,0.20307647,57791.0,57790.0,0.015]
[1726001612177,0.34334276,57791.0,57790.0,0.015]
[1726001612579,1.46246276,57791.0,57790.0,0.015]
[1726001612781,0.173042,57786.0,57785.0,0.004]
[1726001612976,0.173054,57782.0,57781.0,0.004]
[1726001613177,0.41803449,57782.0,57779.0,0.086532]
[1726001613372,0.08653,57780.0,57779.0,0.086532]
[1726001613573,0.086536,57777.0,57776.0,0.086536]
[1726001614967,0.087536,57777.0,57776.0,0.099536]
[1726001615384,0.088536,57777.0,57776.0,0.108536]
[1726001616274,0.088536,57777.0,57776.0,0.095536]
[1726001616474,0.088536,57777.0,57776.0,0.30283969]
[1726001617273,0.375072,57777.0,57776.0,0.21630369]
[1726001617495,0.375072,57777.0,57776.0,0.07808214]
[1726001617676,0.375072,57777.0,57776.0,0.009]
[1726001617877,0.375072,57777.0,57776.0,0.06081443]
[1726001618374,0.375072,57777.0,57776.0,0.009]
[1726001618687,0.173072,57776.0,57775.0,0.05181443]
[1726001619091,0.086536,57776.0,57775.0,0.05178529]
[1726001619277,0.37507,57777.0,57776.0,0.003]
[1726001619983,0.087536,57776.0,57775.0,0.05476133]
[1726001620174,0.174072,57776.0,57775.0,0.05476133]
[1726001620374,0.087536,57776.0,57775.0,0.05474434]
[1726001620588,0.087536,57776.0,57775.0,0.003]
[1726001620881,0.287535,57777.0,57776.0,0.003]
[1726001621080,0.287535,57777.0,57776.0,0.05474602]
[1726001622173,0.287535,57777.0,57776.0,0.004]
[1726001622174,0.288535,57777.0,57776.0,0.004]
[1726001622779,0.087535,57777.0,57776.0,0.001]
[1726001623076,0.001,57777.0,57776.0,0.15661814]
[1726001623278,0.001,57777.0,57776.0,0.087536]
[1726001623684,0.002,57777.0,57776.0,0.091536]
[1726001625286,0.088535,57777.0,57776.0,0.091536]
[1726001626086,0.088535,57777.0,57776.0,0.005]
[1726001626087,0.17507,57777.0,57776.0,0.005]
[1726001628078,0.261605,57777.0,57776.0,0.005]
[1726001628887,0.260605,57777.0,57776.0,0.001]
[1726001629088,0.261605,57777.0,57776.0,0.005]
[1726001632185,1.380845,57777.0,57776.0,0.005]
[1726001632502,1.12124,57777.0,57769.0,0.004]
[1726001632796,0.173096,57768.0,57767.0,0.05171763]
[1726001633380,0.1731,57767.0,57766.0,0.05171763]
[1726001633587,0.3731,57767.0,57766.0,0.05171763]
[1726001634893,0.3741,57767.0,57766.0,0.05171763]
[1726001635892,0.3751,57767.0,57766.0,0.05171763]
[1726001638486,0.086554,57764.0,57763.0,0.06895684]
[1726001639088,0.086554,57764.0,57760.0,0.08656]